{"text_format":"1","workbook":"xlsx","n_sheets":3,"sheets":["Ark1","Ark2","Ark3"],"not_rendered":{"charts":0,"images":52,"macros":1,"external_links":0,"defined_names":3,"comments":0,"pivot_tables":0},"unopened":[],"bounds":{"document_bytes":16777216,"sheet_cells":100000,"rows_first":2000,"rows_last":500,"rows_between":2000,"halvings":0,"cell_chars":16384,"cell_head_chars":4096},"cells_cut":0,"cells_raw":0,"read":"whole","date_system":"1900"}

{"sheet":"Ark1","index":0,"n_rows":169,"n_cols":91,"rows_kept":169,"cut":false,"hidden":false,"merged":[]}
[]
[null,null,null,"De danske Dyndfluer, Eristalis (Diptera: Syrphidae)"]
[null,null,null,null,null,null,null,null,null,null,null,null,"Bent Haagen Petersen"]
[]
["Slægten Eristalis omfatter i Danmark 14 arter. Eristalis alpina, der senest er fundet i 1964, anses i dag"]
["som værende forsvundet fra den danske fauna. Den er derfor ikke medtaget i denne nøgle, men den ken-"]
["des let på de kraftige og krumme baglår. Arterne i Eristalis har en dyb bue på den længste vingeåre. Be-",null,null,null,null,null,null,null,null,null,null,null,null,null,null,null,null,null,null,null,null,null,null,null,null,null,null,null,null,null,null,null,0]
["nene er både gule og sorte. Ingen Eristalis har sorte ben. De fleste arter ligner honningbier, men tre arter",null,null,null,null,null,null,null,null,null,null,null,null,null,null,null,null,null,null,null,null,null,null,null,null,null,null,null,null,null,null,null,0]
["ligner humlebier. De adskilles let ved særlige kendetegn. Især den humlebilignende E. intricaria kan - og"]
["bliver - forvekslet med Narcisfluen Merodon equestris, der også har den dybe bue på længste vingeåre,",null,null,null,null,null,null,null,null,null,null,null,null,null,null,null,null,null,null,null,null,null,null,null,null,null,null,null,null,null,null,null,0]
["men M. equestris har kraftige helt sorte ben. Sorte eller næsten sorte ben har også Volucella bombylans.",null,null,null,null,null,null,null,null,null,null,null,null,null,null,null,null,null,null,null,null,null,null,null,null,null,null,null,null,null,null,null,0]
[null,null,null,null,null,null,null,null,null,null,null,null,null,null,null,null,null,null,null,null,null,null,null,null,null,null,null,null,null,null,null,null,0]
["Flere af de honningbi-lignende arter kan let bestemmes, naturligvis forudsat at kendetegn er synlige. Der-"]
["imod kniber det mere med at adskille E. arbustorum og E. abusiva, hvor førlehornsbørstens behåring",null,null,null,null,null,null,null,null,null,null,null,null,null,null,null,null,null,null,null,null,null,null,null,null,null,null,null,null,null,null,null,0]
["spiller en afgørende rolle. Hos E.abusiva er den meget kort og vanskelig at se, medens den hos E. arbu-",null,null,null,null,null,null,null,null,null,null,null,null,null,null,null,null,null,null,null,null,null,null,null,null,null,null,null,null,null,null,null,0]
["storum er fjergrenet. Slidte eksemplarer kan dog have mistet hårene mere eller mindre. Det samme gæl-",null,null,null,null,null,null,null,null,null,null,null,null,null,null,null,null,null,null,null,null,null,null,null,null,null,null,null,null,null,null,null,0]
["der for ansigtet, hvor E. abusiva har en meget tynd sort midterstribe, medens E. arbustorum blot kan"]
["have lidt mørkt ved mundkanten. Men desværre kan der på slidte eksemplarer vise sig en mørk midter-",null,null,null,null,null,null,null,null,null,null,null,null,null,null,null,null,null,null,null,null,null,null,null,null,null,null,null,null,null,null,null,0]
["stribe.",null,null,null,null,null,null,null,null,null,null,null,null,null,null,null,null,null,null,null,null,null,null,null,null,null,null,null,null,null,null,null,0]
["Den såkaldte rupium-gruppe dækker over de tre arter rupium, picea og pseudorupium. De er vanskeli-",null,null,null,null,null,null,null,null,null,null,null,null,null,null,null,null,null,null,null,null,null,null,null,null,null,null,null,null,null,null,null,0]
["ge at adskille. Således kan hanner hos E. picea og E. pseudorupium kun adskilles ved genitalundersø-"]
["gelse.",null,null,null,null,null,null,null,null,null,null,null,null,null,null,null,null,null,null,null,null,null,null,null,null,null,null,null,null,null,null,null,0]
["     Under nøglen er der et lille skema med 3 kendetegn til hver art, der  giver sikker bestemmelse.",null,null,null,null,null,null,null,null,null,null,null,null,null,null,null,null,null,null,null,null,null,null,null,null,null,null,null,null,null,null,null,0]
[null,null,null,null,null,null,null,null,null,null,null,null,null,null,null,null,null,null,null,null,null,null,null,null,null,null,null,null,null,null,null,null,0]
[null,"Sådan bruger man bedst nøglen"]
["Nøglen er specielt konstrueret til brug ved bestemmelse af fluer på billeder. Den bruger samme kendetegn",null,null,null,null,null,null,null,null,null,null,null,null,null,null,null,null,null,null,null,null,null,null,null,null,null,null,null,null,null,null,null,0]
["som de almindelige nøgler. Blot er man ikke nødt til at gå frem i nøglen i en given rækkefølge, som man ",null,null,null,null,null,null,null,null,null,null,null,null,null,null,null,null,null,null,null,null,null,null,null,null,null,null,null,null,null,null,null,0]
["jo skal i almindelige nøgler. Det er en fordel, da der på billeder som regel er kendetegn, der ikke er syn-",null,null,null,null,null,null,null,null,null,null,null,null,null,null,null,null,null,null,null,null,null,null,null,null,null,null,null,null,null,null,null,0]
["lige. Med nøglen her klikker man i helt vilkårlig rækkefølge på de kendetegn, man kan se på billedet. Man"]
["behøver altså ikke starte med øverste nøglespørgsmål. Det er altid bedst at starte med kendetegn, som er",null,null,null,null,null,null,null,null,null,null,null,null,null,null,null,null,null,null,null,null,null,null,null,null,null,null,null,null,null,null,null,0]
["meget tydelige på billedet. Hver gang man klikker på et kendetegn, vises kendetegnet på et billede. Klik-",null,null,null,null,null,null,null,null,null,null,null,null,null,null,null,null,null,null,null,null,null,null,null,null,null,null,null,null,null,null,null,0]
["man på et kendetegn, der ikke passer med nøglens, gør nøglen opmærksom på, at en bestemmelse da"]
["næppe vil være mulig."]
[]
["I takt med, at mn klikker på kendetegn, kan man på oversigten over arterne se, at antallet af mulige arter"]
["bliver mindre. Når der kun er et navn tilbage i artsoversigten, skriver nøglen, at fluen nu er bestemt, og   "]
["dens navn vises øverst på skemaet. Derefter bør man klikke på fluens navn i artsoversigten for at læse"]
["beskrivelsen af fluen. Samtidig hermed vises  billeder af han og hun. Er man derefter helt sikker på be- "]
["stemmelsen, ken man indrapportere observationennen. Er man ikke særlig øvet i at bestemme fluer, bør"]
["man sikre sig, at bestemmelsen er rigtig ved først at vise den i Fugle&Naturs Tovinge-forum."]
[]
[null,null,null,null,null,null,null,null,null,null,null,null,null,null,null,null,null,null,null,null,null,null,null,null,null,null,null,null,null,null,null,null,null,null," "," ",null,null,null,null,null,null,null,null,null,null,null," ",null," ",null,null,null,null,null,null,null,null,null,null,0]
[]
[" Nøgle til de danske Dyndfluer, Eristalis (Diptera: Syrphidae) ",null,null,null,null,null,null,null,null,null,null,null,null,null,null,null,null,null,null,null,null,null,null,null,null,null,null,null,null,null,null,null,"Ø"]
[null,null,null,null," ",null,null," ",null,null,null," ",null," ",null," "]
[null,null,null,null,null,null,null,null,null,null,null,null,null,null,null,null,null,null,{"$f":"IF(AM50=1,VLOOKUP(AM49,AM51:AN62,2,FALSE),\"     Eristalis sp.\")","v":"     Eristalis sp."},null,null,null,null,null,null,null,null,null,null,null,null,null,null,null,5,null,null,null,null,null,null,null,null,null,null,null,null,"*"," ","* "," ",null,"*",null,null,"*",null," ","*"," ",null,"*",null," ","*"," ","*"]
[null,null,null,null,null,null,null,null,null,null,null,null,null,null,null,null,null,null,{"$f":"IF(AM50=1,VLOOKUP(AM49,AM64:AN75,2,FALSE), AN76)","v":"         Dyndflue"},null,null,null,null,null,null,null,null,null,null,null,null,null,null,null,null,null,null,null,{"$f":"SUM(AV47+AX47+BA47+BD47+BG47+BJ47+BM47+BO47)","v":0},"Afkrydsede felter *",null,null,null,null,null,null,null,{"$f":"IF(AW47=0,0,1)","v":0},{"$f":"SUM(AV48:AW48)","v":0},{"$f":"IF(AY47=0,0,1)","v":0},{"$f":"SUM(AX48:AZ48)","v":0},null,{"$f":"IF(BB47=0,0,1)","v":0},{"$f":"SUM(BA48:BC48)","v":0},null,{"$f":"IF(BE47=0,0,1)","v":0},{"$f":"SUM(BD48:BF48)","v":0},null,{"$f":"IF(BH47=0,0,1)","v":0},{"$f":"SUM(BG48:BI48)","v":0},null,{"$f":"IF(BK47=0,0,1)","v":0},{"$f":"SUM(BJ48:BL48)","v":0},null,{"$f":"IF(BN47=0,0,1)","v":0},{"$f":"SUM(BM48:BN48)","v":0},{"$f":"IF(BP47=0,0,1)","v":0},{"$f":"SUM(BO48:BP48)","v":0}]
["Honningbi-lignende?",null,null,null,null,null,null,null,null,null,null," ",null,null,null,null,null,null,null,null,null,null,null,null,null,null,null,null,null,null,null,null,null,null,{"$f":"IF(AJ48= TRUE,\"x\",\" \")","v":" "},0,null,null,null,null,null,null,null,null,null,null,null,{"$f":"IF(AI48=\" \",0,1)","v":0},{"$f":"IF(AI49=\" \",0,1)","v":0},{"$f":"IF(AI51=\" \",0,1)","v":0},{"$f":"IF(AI52=\" \",0,1)","v":0},{"$f":"IF(AI53=\" \",0,1)","v":0},{"$f":"IF(AI55=\" \",0,1)","v":0},{"$f":"IF(AI56=\" \",0,1)","v":0},{"$f":"IF(AI57=\" \",0,1)","v":0},{"$f":"IF(AI59=\" \",0,1)","v":0},{"$f":"IF(AI60=\" \",0,1)","v":0},{"$f":"IF(AI61=\" \",0,1)","v":0},{"$f":"IF(AI63=\" \",0,1)","v":0},{"$f":"IF(AI64=\" \",0,1)","v":0},{"$f":"IF(AI65=\" \",0,1)","v":0},{"$f":"IF(AI67=\" \",0,1)","v":0},{"$f":"IF(AI68=\" \",0,1)","v":0},{"$f":"IF(AI69=\" \",0,1)","v":0},{"$f":"IF(AI71=\" \",0,1)","v":0},{"$f":"IF(AI72=\" \",0,1)","v":0},{"$f":"IF(AI74=\" \",0,1)","v":0},{"$f":"IF(AI75=\" \",0,1)","v":0}]
["Humlebi-lignende?",null,null,null,null,null,null,null,null,null,null," ",null,null,null,null,null,{"$f":"IF(AM50=1,\"Fluen er nu bestemt.  Se ovenfor.\",\" \")","v":" "},null,null,null,null,null,null,null,null,null,null,null,null,null,null,null,null,{"$f":"IF(AJ49=TRUE,\"x\",\" \")","v":" "},0,null,null,{"$f":"MAX(AM51:AM62)","v":0},"Maks.",null,null,null,null,null,null,null,null,null,null,null,null,null,null,null," "]
[null,null,null,null,null,null,null,null,null,null,null,null,null,null,null,null,{"$f":"IF(AM50=1,\" \",IF(AM47=AM49,\"Se de mulige arter i oversigten nedenfor.\",\" \"))","v":"Se de mulige arter i oversigten nedenfor."},null,null,null,null,null,null,null,null,null,null,null,null,null,null,null,null,null,null,null,null,null,{"$f":"COUNTIF(AM51:AM62,AM49)","v":12},"Ant. Maks",null,null,null,null,null,null,null,"Ho","Hu","As",null,"Au","Ffg",null,"Ffs","Bfg",null,"Bfs","Vt","Vs","Vu","Mk",null,"Ml","Lh","Lu","la","ko"]
["Ansigt med tydelig sort midterstribe?",null,null,null,null,null,null,null,null,null,null," ",null,null,null,null,null,null,null,null,null,null,null,null,null,null,null,null,null,null,null,null,null,null,{"$f":"IF(AJ51= TRUE,\"x\",\" \")","v":" "},0,null,null,{"$f":"SUM(AV51:BP51)","v":0},"Eristalis abusiva",null,null,null,null,null,null,null,{"$f":"IF(AI48=\"x\",1,\" \")","v":" "},null,null,{"$f":"IF(AI52=\"x\",1,\" \")","v":" "},null,null,{"$f":"IF(AI56=\"x\",1,\" \")","v":" "},{"$f":"IF(AI57=\"x\",1,\" \")","v":" "},null,null,{"$f":"IF(AI61=\"x\",1,\" \")","v":" "},null,null,{"$f":"IF(AI65=\"x\",1,\" \")","v":" "},null,{"$f":"IF(AI68=\"x\",1,\" \")","v":" "}," ",null,{"$f":"IF(AI72=\"x\",1,\" \")","v":" "},null,{"$f":"IF(AI75=\"x\",1,\" \")","v":" "}]
["Ansigt kun med tynd stregagtig stribe?",null,null,null,null,null,null,null,null,null,null,null,null,null,{"$f":"IF(AM47>AM49,\"  Afkrydsede kendetegn passer ikke med nøglens.\",\" \")","v":" "},null,null,null,null,null,null,null,null,null,null,null,null,null,null,null,null,null,null,null,{"$f":"IF(AJ52= TRUE,\"x\",\" \")","v":" "},0,null,null,{"$f":"SUM(AV52:BP52)","v":0},"Eristalis anthophorina",null,null,null,null,null,null,null,null,{"$f":"IF(AI49=\"x\",1,\" \")","v":" "},{"$f":"IF(AI51=\"x\",1,\" \")","v":" "},null,null,null,null,{"$f":"IF(AI57=\"x\",1,\" \")","v":" "},null,null,{"$f":"IF(AI61=\"x\",1,\" \")","v":" "},{"$f":"IF(AI63=\"x\",1,\" \")","v":" "},{"$f":"IF(AI64=\"x\",1,\" \")","v":" "},null,{"$f":"IF(AI67=\"x\",1,\" \")","v":" "},null,null,null,{"$f":"IF(AI72=\"x\",1,\" \")","v":" "},null,{"$f":"IF(AI75=\"x\",1,\" \")","v":" "}]
["Ansigt helt uden midterstribe?",null,null,null,null,null,null,null,null,null,null,null,null,null,{"$f":"IF(AM47>AM49,\"  Det gør en bestemmelse tvivlsom.    Prøv igen !\",\" \")","v":" "},null,null,null,null,null,null,null,null,null,null,null,null,null,null,null,null,null,null,null,{"$f":"IF(AJ53= TRUE,\"x\",\" \")","v":" "},0,null,null,0,"Eristalis arbustorum",null,null,null,null,null,null,null,{"$f":"IF(AI48=\"x\",1,\" \")","v":" "},null,null,null,{"$f":"IF(AI53=\"x\",1,\" \")","v":" "},null,{"$f":"IF(AI56=\"x\",1,\" \")","v":" "},{"$f":"IF(AI57=\"x\",1,\" \")","v":" "},null,null,{"$f":"IF(AI61=\"x\",1,\" \")","v":" "},null,null,{"$f":"IF(AI65=\"x\",1,\" \")","v":" "},null,{"$f":"IF(AI68=\"x\",1,\" \")","v":" "},{"$f":"IF(AI69=\"x\",1,\" \")","v":" "},null,{"$f":"IF(AI72=\"x\",1,\" \")","v":" "},{"$f":"IF(AI74=\"x\",1,\" \")","v":" "}]
[null,null,null,null,null,null,null,null,null,null,null,null,null,"Vil du vil læse mere om en art, så tryk på dens nummer.",null,null,null,null,null,null,null,null,null,null,null,null,null,null,null,null,null,null,null,null," ",null,null,null,0,"Eristalis cryptarum",null,null,null,null,null,null,null,{"$f":"IF(AI48=\"x\",1,\" \")","v":" "},null,{"$f":"IF(AI51=\"x\",1,\" \")","v":" "},null,null,null,{"$f":"IF(AI56=\"x\",1,\" \")","v":" "},null,{"$f":"IF(AI59=\"x\",1,\" \")","v":" "},{"$f":"IF(AI60=\"x\",1,\" \")","v":" "},null,{"$f":"IF(AI63=\"x\",1,\" \")","v":" "},null,null,null,{"$f":"IF(AI68=\"x\",1,\" \")","v":" "},null,null,{"$f":"IF(AI72=\"x\",1,\" \")","v":" "},null,{"$f":"IF(AI75=\"x\",1,\" \")","v":" "}]
["For- og mellemfødder helt gule?",null,null,null,null,null,null,null,null,null,null,null,null,null,null,null,null,null,null,null,null,null,null,null,null,null,null,null,null,null," ",null,null,null,{"$f":"IF(AJ55= TRUE,\"x\",\" \")","v":" "},0,null,null,0,"Eristalis interrupta",null,null,null,null,null,null,null,{"$f":"IF(AI48=\"x\",1,\" \")","v":" "},null,{"$f":"IF(AI51=\"x\",1,\" \")","v":" "},null,null,null,{"$f":"IF(AI56=\"x\",1,\" \")","v":" "},{"$f":"IF(AI57=\"x\",1,\" \")","v":" "},null,null,{"$f":"IF(AI61=\"x\",1,\" \")","v":" "},null,null,{"$f":"IF(AI65=\"x\",1,\" \")","v":" "},{"$f":"IF(AI67=\"x\",1,\" \")","v":" "},null,null,null,{"$f":"IF(AI72=\"x\",1,\" \")","v":" "},{"$f":"IF(AI74=\"x\",1,\" \")","v":" "}]
["Forfødder mørke yderst, lysere inderst?",null,null,null,null,null,null,null,null,null,null,null,null,null,null,null,{"$f":"IF(AM51=AM49,\"Eristalis abusiva\",\" \")","v":"Eristalis abusiva"},null,null,null,null,null,null,null,{"$f":"IF(AM64=AM49,\"Lille Dyndflue\",\" \")","v":"Lille Dyndflue"},null,null,null,null,null,null,null,null,null,{"$f":"IF(AJ56= TRUE,\"x\",\" \")","v":" "},0,null,null,0,"Eristalis intricaria",null,null,null,null,null,null,null,null,{"$f":"IF(AI49=\"x\",1,\" \")","v":" "},{"$f":"IF(AI51=\"x\",1,\" \")","v":" "},null,null,null,null,{"$f":"IF(AI57=\"x\",1,\" \")","v":" "},null,null,{"$f":"IF(AI61=\"x\",1,\" \")","v":" "},{"$f":"IF(AI63=\"x\",1,\" \")","v":" "},{"$f":"IF(AI64=\"x\",1,\" \")","v":" "},{"$f":"IF(AI65=\"x\",1,\" \")","v":" "},{"$f":"IF(AI67=\"x\",1,\" \")","v":" "},null,null,null,{"$f":"IF(AI72=\"x\",1,\" \")","v":" "},{"$f":"IF(AI74=\"x\",1,\" \")","v":" "}]
["Forfødder helt mørke?",null,null,null,null,null,null,null,null,null,null," ",null,null,null,null,{"$f":"IF(AM52=AM49,\"Eristalis anthophorina\",\" \")","v":"Eristalis anthophorina"},null,null,null,null,null,null,null,{"$f":"IF(AM65=AM49,\"Gul Dyndflue\",\" \")","v":"Gul Dyndflue"},null,null,null,null,null,null,null,null,null,{"$f":"IF(AJ57= TRUE,\"x\",\" \")","v":" "},0,null,null,0,"Eristalis lineata",null,null,null,null,null,null,null,{"$f":"IF(AI48=\"x\",1,\" \")","v":" "},null,{"$f":"IF(AI51=\"x\",1,\" \")","v":" "},null,null,null,{"$f":"IF(AI56=\"x\",1,\" \")","v":" "},{"$f":"IF(AI57=\"x\",1,\" \")","v":" "},null,null,{"$f":"IF(AI61=\"x\",1,\" \")","v":" "},{"$f":"IF(AI63=\"x\",1,\" \")","v":" "},null,null,null,{"$f":"IF(AI68=\"x\",1,\" \")","v":" "},null,null,{"$f":"IF(AI72=\"x\",1,\" \")","v":" "},{"$f":"IF(AI74=\"x\",1,\" \")","v":" "}]
[null,null,null,null,null,null,null,null,null,null,null,null,null,null,null,null,{"$f":"IF(AM53=AM49,\"Eristalis arbustorum\",\" \")","v":"Eristalis arbustorum"},null,null,null,null,null,null,null,{"$f":"IF(AM66=AM49,\"Almindelig Dyndflue\",\" \")","v":"Almindelig Dyndflue"},null,null,null,null,null,null,null,null,null," ",null,null,null,0,"Eristalis oestracea",null,null,null,null,null,null,null,null,{"$f":"IF(AI49=\"x\",1,\" \")","v":" "},{"$f":"IF(AI51=\"x\",1,\" \")","v":" "},null,null,null,null,{"$f":"IF(AI57=\"x\",1,\" \")","v":" "},{"$f":"IF(AI59=\"x\",1,\" \")","v":" "},null,null,{"$f":"IF(AI63=\"x\",1,\" \")","v":" "}," ",{"$f":"IF(AI65=\"x\",1,\" \")","v":" "},{"$f":"IF(AI67=\"x\",1,\" \")","v":" "},null,null,{"$f":"IF(AI71=\"x\",1,\" \")","v":" "},null,null,{"$f":"IF(AI75=\"x\",1,\" \")","v":" "}]
["Bagfødder gule, yderstete led evt. sorte? ",null,null,null,null,null,null,null,null,null,null," ",null,null,null,null,{"$f":"IF(AM54=AM49,\"Eristalis cryptarum\",\" \")","v":"Eristalis cryptarum"},null,null,null,null,null,null,null,{"$f":"IF(AM67=AM49,\"Hedemose-Dyndflue\",\" \")","v":"Hedemose-Dyndflue"},null,null,null,null,null,null,null,null,null,{"$f":"IF(AJ59= TRUE,\"x\",\" \")","v":" "},0,null,null,0,"Eristalis pertinax",null,null,null,null,null,null,null,{"$f":"IF(AI48=\"x\",1,\" \")","v":" "},null,null,{"$f":"IF(AI52=\"x\",1,\" \")","v":" "},null,{"$f":"IF(AI55=\"x\",1,\" \")","v":" "},null,null," ",null,{"$f":"IF(AI61=\"x\",1,\" \")","v":" "},null,{"$f":"IF(AI64=\"x\",1,\" \")","v":" "},{"$f":"IF(AI65=\"x\",1,\" \")","v":" "},null,{"$f":"IF(AI68=\"x\",1,\" \")","v":" "},{"$f":"IF(AI69=\"x\",1,\" \")","v":" "},null,{"$f":"IF(AI72=\"x\",1,\" \")","v":" "},{"$f":"IF(AI74=\"x\",1,\" \")","v":" "}]
["Kun 1. og 2. bagfodsled gule/rødbrune?",null,null,null,null,null,null,null,null,null,null,null,null,null,null,null,{"$f":"IF(AM55=AM49,\"Eristalis interrupta\",\" \")","v":"Eristalis interrupta"},null,null,null,null,null,null,null,{"$f":"IF(AM68=AM49,\"Mark-Dyndflue\",\" \")","v":"Mark-Dyndflue"},null,null,null,null,null,null,null,null,null,{"$f":"IF(AJ60= TRUE,\"x\",\" \")","v":" "},0,null,null,0,"Eristalis rupium- gruppe",null,null,null,null,null,null,null,{"$f":"IF(AI48=\"x\",1,\" \")","v":" "},null,{"$f":"IF(AI51=\"x\",1,\" \")","v":" "},null,null,null,{"$f":"IF(AI56=\"x\",1,\" \")","v":" "},{"$f":"IF(AI57=\"x\",1,\" \")","v":" "},null,{"$f":"IF(AI60=\"x\",1,\" \")","v":" "},null,{"$f":"IF(AI63=\"x\",1,\" \")","v":" "},{"$f":"IF(AI64=\"x\",1,\" \")","v":" "},null,{"$f":"IF(AI67=\"x\",1,\" \")","v":" "},{"$f":"IF(AI68=\"x\",1,\" \")","v":" "},null,null,{"$f":"IF(AI72=\"x\",1,\" \")","v":" "},{"$f":"IF(AI74=\"x\",1,\" \")","v":" "}]
["Bagfødder helt mørke ?",null,null,null,null,null,null,null,null,null,null," ",null,null,null,null,{"$f":"IF(AM56=AM49,\"Eristalis intricaria\",\" \")","v":"Eristalis intricaria"},null,null,null,null,null,null,null,{"$f":"IF(AM69=AM49,\"Håret Dyndflue\",\" \")","v":"Håret Dyndflue"},null,null,null,null,null,null,null,null,null,{"$f":"IF(AJ61= TRUE,\"x\",\" \")","v":" "},0,null,null,0,"Eristalis similis",null,null,null,null,null,null,null,{"$f":"IF(AI48=\"x\",1,\" \")","v":" "},null,null,{"$f":"IF(AI52=\"x\",1,\" \")","v":" "},null,null,null,{"$f":"IF(AI57=\"x\",1,\" \")","v":" "},null,null,{"$f":"IF(AI61=\"x\",1,\" \")","v":" "},null,null,{"$f":"IF(AI65=\"x\",1,\" \")","v":" "},null,null,{"$f":"IF(AI69=\"x\",1,\" \")","v":" "},null,{"$f":"IF(AI72=\"x\",1,\" \")","v":" "},{"$f":"IF(AI74=\"x\",1,\" \")","v":" "}]
[" ",null,null,null,null,null,null,null,null,null,null,null,null,null,null,null,{"$f":"IF(AM57=AM49,\"Eristalis lineata\",\" \")","v":"Eristalis lineata"},null,null,null,null,null,null,null,{"$f":"IF(AM70=AM49,\"Have-Dyndflue\",\" \")","v":"Have-Dyndflue"},null,null,null,null,null,null,null,null,null," ",null,null,null,0,"Eristalis tenax",null,null,null,null,null,null,null,{"$f":"IF(AI48=\"x\",1,\" \")","v":" "},null,{"$f":"IF(AI51=\"x\",1,\" \")","v":" "},null,null," ",null,{"$f":"IF(AI57=\"x\",1,\" \")","v":" "}," ",null,{"$f":"IF(AI61=\"x\",1,\" \")","v":" "},null,{"$f":"IF(AI64=\"x\",1,\" \")","v":" "},{"$f":"IF(AI65=\"x\",1,\" \")","v":" "},null,{"$f":"IF(AI68=\"x\",1,\" \")","v":" "},null,{"$f":"IF(AI71=\"x\",1,\" \")","v":" "},null,null,{"$f":"IF(AI75=\"x\",1,\" \")","v":" "}]
["Vinger med tydeligt mørkt bånd?",null,null,null,null,null,null,null,null,null,null," ",null,null,null,null,{"$f":"IF(AM58=AM49,\"Eristalis oestracea\",\" \")","v":"Eristalis oestracea"},null,null,null,null,null,null,null,{"$f":"IF(AM71=AM49,\"Bremse-Dyndflue\",\" \")","v":"Bremse-Dyndflue"},null,null,null,null,null,null,null,null,null,{"$f":"IF(AJ63= TRUE,\"x\",\" \")","v":" "},0]
["Vinger med mindre tydeligt bånd?",null,null,null,null,null,null,null,null,null,null," ",null,null,null,null,{"$f":"IF(AM59=AM49,\"Eristalis pertinax\",\" \")","v":"Eristalis pertinax"},null,null,null,null,null,null,null,{"$f":"IF(AM72=AM49,\"Gulfodet Dyndflue\",\" \")","v":"Gulfodet Dyndflue"},null,null,null,null,null,null,null,null,null,{"$f":"IF(AJ64= TRUE,\"x\",\" \")","v":" "},0,null,null,{"$f":"SUM(AV51:BP51)","v":0},"       Lille Dyndflue",null,null,null,null,null,null,null,1,"Ligner E. arbustorum, men denne",null,null,null,null,null,null,null,null,1,"Eristalis abusiva."]
["Vinger helt uden mørkt bånd?",null,null,null,null,null,null,null,null,null,null," ",null,null,null,null,{"$f":"IF(AM60=AM49,\"Eristalis rupium gruppe\",\" \")","v":"Eristalis rupium gruppe"},null,null,null,null,null,null,null,{"$f":"IF(AM73=AM49,\"Dyndflue\",\" \")","v":"Dyndflue"},null,null,null,null,null,null,null,null,null,{"$f":"IF(AJ65= TRUE,\"x\",\" \")","v":" "},0,null,null,0,"   Gul Dyndflue",null,null,null,null,null,null,null,2,"Følehornsbørsten meget kort",null,null,null,null,null,null,null,null,2,"Eristalis anthophorina."]
[null,null,null,null,null,null,null,null,null,null,null,null,null,null,null,null,{"$f":"IF(AM61=AM49,\"Eristalis similis\",\" \")","v":"Eristalis similis"},null,null,null,null,null,null,null,{"$f":"IF(AM74=AM49,\"Sydlig Dyndflue\",\" \")","v":"Sydlig Dyndflue"},null,null,null,null,null,null,null,null,null," ",null,null,null,0,"   Almindelig Dyndflue",null,null,null,null,null,null,null,3,"Hannens bagkrop har store matte",null,null,null,null,null,null,null,null,3,"Eristalis arbustorum."]
["Vingemærke ca. så lang som bredt?",null,null,null,null,null,null,null,null,null,null," ",null,null,null,null,{"$f":"IF(AM62=AM49,\"Eristalis tenax\",\" \")","v":"Eristalis tenax"},null,null,null,null,null,null,null,{"$f":"IF(AM75=AM49,\"Droneflue\",\" \")","v":"Droneflue"},null,null,null,null,null,null,null,null,null,{"$f":"IF(AJ67= TRUE,\"x\",\" \")","v":" "},0,null,null,0,"    Hedemose-Dyndflue",null,null,null,null,null,null,null,4,"Eneste Dyndflue, der  har benene",null,null,null,null,null,null,null,null,4,"Eristalis cryptarum."]
["Vingemærke ca. 2-3 gange bredden?",null,null,null,null,null,null,null,null,null,null," ",null,null,null,null,null,null,null,null,null,null,null,null,null,null,null,null,null,null,null,null,null,null,{"$f":"IF(AJ68= TRUE,\"x\",\" \")","v":" "},0,null,null,0,"     Mark-Dyndflue",null,null,null,null,null,null,null,5,"Vingemærket punktformet og",null,null,null,null,null,null,null,null,5,"Eristalis interrupta."]
["Vingemærke ca. 4-6 gange bredden?",null,null,null,null,null,null,null,null,null,null," ",null,{"$f":"AL91","v":3},{"$f":"VLOOKUP(N69,BF64:BG75,2)","v":"Eristalis arbustorum."},null,null,null,null,null,null,null,{"$f":"VLOOKUP(N69,AV64:AW75,2)","v":"Hannens bagkrop har store matte"},null,null,null,null,null,null,null,null,null,null,null,{"$f":"IF(AJ69= TRUE,\"x\",\" \")","v":" "},0,null,null,0,"     Håret Dyndflue",null,null,null,null,null,null,null,6,"Meget  forskellige farvevarianter",null,null,null,null,null,null,null,null,6,"Eristalis intricaria."]
[null,null,null,null,null,null,null,null,null,null,null,null,null,{"$f":"VLOOKUP(N69,AV77:AW88,2)","v":"gule sammenhængende pletter, der danner en timeglas-formet teg-"},null,null,null,null,null,null,null,null,null,null,null,null,null,null,null,null,null,null,null,null," ",null,null,null,0,"     Have-Dyndflue",null,null,null,null,null,null,null,7,"Store matte gule pletter på 2. bag-",null,null,null,null,null,null,null,null,7,"Eristalis lineata."]
["Bagskinneben med lang sort behåring?",null,null,null,null,null,null,null,null,null,null," ",null,{"$f":"VLOOKUP(N69,AV90:AW101,2)","v":"ning. Hunnens pletter mindre eller manglende. Ansigtet gråt, uden sort"},null,null,null,null,null,null,null,null,null,null,null,null,null,null,null,null,null,null,null,null,{"$f":"IF(AJ71= TRUE,\"x\",\" \")","v":" "},0,null,null,0,"    Bremse-Dyndflue",null,null,null,null,null,null,null,8,"Scutellum og vingeskæl hvidlige.",null,null,null,null,null,null,null,null,8,"Eristalis oestracea."]
["Bagskinneben lyse på basale halvdel?",null,null,null,null,null,null,null,null,null,null,null,null,{"$f":"VLOOKUP(N69,AV103:AW114,2)","v":"midterstribe. Dog  kan slidte eks. have en tynd stribe og ligner da"},null,null,null,null,null,null,null,null,null,null,null,null,null,null,null,null,null,null,null,null,{"$f":"IF(AJ72= TRUE,\"x\",\" \")","v":" "},0,null,null,0,"   Gulfodet Dyndflue ",null,null,null,null,null,null,null,9,"Meget let kendelig på de  helt",null,null,null,null,null,null,null,null,9,"Eristalis pertinax."]
[null,null,null,null,null,null,null,null,null,null,null,null,null,{"$f":"VLOOKUP(N69,AV116:AW127,2)","v":" E. abusiva. Følehornsbørsten fjergrenet behåret. Mellemste skin-"},null,null,null,null,null,null,null,null,null,null,null,null,null,null,null,null,null,null,null,null,null,null,null,null,0,"             Dyndflue",null,null,null,null,null,null,null,10,"Tre arter. Hanner: Arterne kan ",null,null,null,null,null,null,null,null,10,"Eristalis rupium gruppe."]
["Antennebørste fjergrenet behåret?",null,null,null,null,null,null,null,null,null,null,null,null,{"$f":"VLOOKUP(N69,AV129:AW140,2)","v":"neben sorte i ca.yderste trediedel. 9-12 mm. Almindelig."},null,null,null,null,null,null,null,null,null,null,null,null,null,null,null,null,null,null,null,null,{"$f":"IF(AJ74= TRUE,\"x\",\" \")","v":" "},0,null,null,0,"    Sydlig Dyndflue",null,null,null,null,null,null,null,11,"En stor flue med helt klare",null,null,null,null,null,null,null,null,11,"Eristalis similis."]
["Antennebørste meget kort behåret?",null,null,null,null,null,null,null,null,null,null,null,null,{"$f":"VLOOKUP(N69,AV142:AW153,2)","v":"."},null,null,null,null,null,null,null,null,null,null,null,null,null,null,null,null,null,null,null,null,{"$f":"IF(AJ75= TRUE,\"x\",\" \")","v":" "},0,null,null,0,"       Droneflue",null,null,null,null,null,null,null,12,"Mørke hårfrynser på bagskinne-",null,null,null,null,null,null,null,null,12,"Eristalis tenax."]
[null,null,null,null,null,null,null,null,null,null,null,null,null,null,null,null,null,null,null,null,null,null,null,null," Dyndfluer m. billeder 1.",null,null,null,null,null,null,null,null,null,null,null,null,null,null,"         Dyndflue"]
[null,null,null,null,null,null,null,null,null,null,null,null,null,null,null,null,null,null,null,null,null,null,null,null,null,null,null,null,null,null,null,null,null,null,null,null,null,null,null,null,null,null,null,null,null,2,null,1," har for- og midtskinnebenene sorte på ca. yderste trediedel, og ",null,null,null,null,null,null,null,null,null,null,null,null,null,"rødbrune"]
[null,null,null,null,null,null,null,null,null,null,null,null,null,null,null,null,null,null,null,null,null,null,null,null,null,null,null,null,null,null,null,null,null,null,null,null,null,null,null,null,null,null,null,null,null,null,null,2," behåret. Scutellum bleggult. Brystskæl lyse. Bryst og  bagkrop"]
[null,null,null,null,null,null,null,null,null,null,null,null,null,null,null,null,null,null,null,null,null,null,null,null,null,null,null,null,null,null,null,null,null,null,null,null,null,null,null,null,null,null,null,null,null,null,null,3,"gule sammenhængende pletter, der danner en timeglas-formet teg-"]
[null,null,null,null,null,null,null,null,null,null,null,null,null,null,null,null,null,null,null,null,null,null,null,null,null,null,null,null,null,null,null,null,null,null,null,null,null,null,null,null,null,null,null,null,null,null,null,4," næsten helt gule. Kun det inderste af lårene og de yderste fodled"]
[null,null,null," ",null,null,null,null,null,null,null,null,null,{"$f":"IF(T88>1,T88,\" \")","v":" "},null,null,null,null,null,null,null,null,null,null,null,null,null,null,null,null,null,null,null,null,null,null,null,null,null,null,null,null,null,null,null,null,null,5,"skarpt afgrænset.Vingerne er helt klare. På bagkroppens 2. led har"]
[null,null,null,null,null,null,null,null,null,null,null,null,"Danske Dyndfluer, Eristalis",null,null,null,null,null,null,null,null,null,null,null,null,null,null,null,null,null,null,null,null,null,null,null,null,null,null,null,null,null,null,null,null,null,null,6,"forekommer. Karakteristisk er det mørke røgfarvede brystskæl."]
[null,null,null,null,"       Den lille hurtige med udvalgte kendetegn, der giver sikker bestemmelse.",null,null,null,null,null,null,null,null,null,null,null,null,null,null,null,null,null,null,null,null,null,null,null,null,null,null,null,null,null,null,null,null,null,null,null,null,null,null,null,null,null,null,7,"kropsled og små gule pletter på 3. bagkropsleds hjørner. Vingerne "]
[null,null,"Honningbi-lignende:",null,null,null,null,null,null,null,null,null,null,null,null,null,null,null,null,null,null,null,null,null,null,null,null,null,null,null,null,null,null,null,null,null,null,null,null,null,null,null,null,null,null,null,null,8," Hunnen har mørkt vingebånd, hannen intet. Bagkropsspidsen oran-"]
[null,null,"For- og mellemfødder gule. Vinger med svagt tværbånd. Vingemærke langt.   ",null,null,null,null,null,null,null,null,null,null,null,null,null,null,null,null,null,null,null,null,null,null,null,"Altid pertinax.",null,null,null,null,null,null,null,null,null,null,null,null,null,null,null,null,null,null,null,null,9,"gule for- og mellemfødder og det lange vingemærke. Kroppen kan"]
[null,null,"Ansigt med smal sort stribe. Vinger klare. Vingemærke meget langt, 4-6 x bredden.",null,null,null,null,null,null,null,null,null,null,null,null,null,null,null,null,null,null,null,null,null,null,null,"Altid similis.",null,null,null,null,null,null,null,null,null,null,null,null,null,null,null,null,null,null,null,null,10," kun adskilles ved genitalundersøgelse. Hunner: E. picea og E. ru-"]
[null,null,"Vinger klare. Vingemærke lille, punktformet. Bagkropspletter skinnende.",null,null,null,null,null,null,null,null,null,null,null,null,null,null,null,null,null,null,null,null,null,null,null,"Altid interrupta",null,null,null,null,null,null,null,null,null,null,null,null,null,null,null,null,null,null,null,null,11,"vinger og et langt skarpt afgrænset vingemærke (4-6 x bredden)."]
[null,null,"Vinger med tværbånd, mærket 2 x bredden. Bagfødder sorte. Bagkropspletter matte.",null,null,null,null,null,null,null,null,null,null,null,null,null,null,null,null,null,null,null,null,null,null,null,"Altid lineata",null,null,null,null,null,null,null,null," ",null,null,null,null,null,null,null,null,null,null,null,12,"benene, to lodrette mørke hårstrber på øjnene (foruden den lyse"]
[null,null,"Vinger med tværbånd. Bagfødder gule/rødbrune inderst. Bagkropspletter skinnende.",null,null,null,null,null,null,null,null,null,null,null,null,null,null,null,null,null,null,null,null,null,null,null,"Altid rupium gr."]
[null,null,"Øjne med to lodrette mørke hårstriber. Bagskinneben med lange sorte hårfrynser.",null,null,null,null,null,null,null,null,null,null,null,null,null,null,null,null,null,null,null,null,null,null,null,"Altid tenax.",null,null,null,null,null,null,null,null,null,null,null,null,null,null,null,null,null,null,3,null,1,"følehornsbørsten er fjergrenet. E. abusiva har de samme ben gule,"]
[null,null,"Ansigt uden sort midterstribe (Se forfra). Følehornsbørste fjergrenet behåret.",null,null,null,null,null,null,null,null,null,null,null,null,null,null,null,null,null,null,null,null,null,null,null,"Altid arbustorum",null,null,null,null,null,null,null,null,null," ",3,null,null,null,null,null,null,null,null,null,2," med gul behåring, brystet lysest. Fødderne sorte. Hunnen har tyde-"]
[null,null,"Ansigt med stregagtig sort midterstribe. Følehornsbørste ganske kort behåret.",null,null,null,null,null,null,null,null,null,null,null,null,null,null,null,null,null,null,null,null,null,null,null,"Altid abusiva",null,null,null,null,null,null,null,null,null," ",null,null,null,null,null,null,null,null,null,null,3,"ning. Hunnens pletter mindre eller manglende. Ansigtet gråt, uden sort"]
[null,null,"Skinneben og fødder sorte yderst. Lår sorte basalt. Vingeplet og -forkant rødbrun.",null,null,null,null,null,null,null,null,null,null,null,null,null,null,null,null,null,null,null,null,null,null,null,"Altid cryptarum",null,null,null,null," ",null,null,null,null," ",null,null,null,null,null,null,null,null,null,null,4," er sorte. Vingerne har en stor gulbrun plet midt på. Også vingernes"]
[null,null,null,null,null,null,null,null,null,null,null,null,null,null,null,null,null,null,null,null,null,null,null,null,null,null,null,null,null,null,null,null,null,null,null,null,null,null,null,null,null,null,null,null,null,null,null,5,"hannen store skinnende gule pletter; på 3. led små. Hunnens pletter"]
[null,null,"Humlebi-lignende:",null,null,null,null,null,null,null,null,null,null,null,null,null,null,null,null,null,null,null,null,null,null,null,null,null,null,null,null,null,null,null,null,null,null,null,null,null,null,null,null,null,null,null,null,6,"(E. oestracea har hvidt brystskæl). Vingemærket er punktformet, "]
[null,null,"Bagskinneben med lang sort behåring. Bagfødder tæt gult behårede.",null,null,null,null,null,null,null,null,null,null,null,null,null,null,null,null,null,null,null,null,null,null,null,"Altid oestracea",null,null,null,null,null,null,null,null,null,null,null,null,null,null,null,null,null,null,null,null,7,"oftest med tydelig mørkt vingebånd. Bagfødder sorte. Forfødder "]
[null,null,"Vingemærke punktformet. Brystskæl mørke. Skinneben elfenbensfarvede basalt.",null,null,null,null,null,null,null,null,null,null,null,null,null,null,null,null,null,null,null,null,null,null,null,"Altid intricaria.",null,null,null,null,null,null,null,null,null,null,null,null,null,null,null,null,null,null,null,null,8,"gerød. Bagskinneben langt sort behårede. Bagfødderne gult behå-"]
[null,null,"Brystoverside med lys behåring. Brystskæl hvide. Fødder mørke.",null,null,null,null,null,null,null,null,null,null,null,null,null,null,null,null,null,null,null,null,null,null,null,"Altid anthophorina",null,null,null,null,null,null,null,null,null,null,null,null,null,null,null,null,null,null,null,null,9,"have et blåsort skær, især hos hannen, der også kendes på den"]
[null,null,null,null,null,null,null,null,null,null,null,null,null,null,null,null,null,null,null,null,null,null,null,null,null,null,null,null,null,null,null,null,null,null,null,null,null,null,null,null,null,null,null,null,null,null,null,10,"pium har beåringen bagtil på 3. bagkropsled opret. E. pseudorupium"]
[null,null,null,null,null,null,null,null,null,null,null,null,null,null,null,null,null,null,null,null,null,null,null,null,null,null,null,null,null,null,null,null,null,null,null,null," ",null,null,null,null,null,null,null,null,null,null,11,"Fødderne sorte, dog er mellemfødderne gule basalt. Bagkroppens"]
[null,null,null,null,null,null,null,null,null,null,null,null,null,null,null,null,null,null,null,null,null,null,null,null,null,null,null,null,null,null,null,null,null,null,null,null,null,null,null,null,null,null,null,null,null,null,null,12,"øjenbehåring) og en meget bred sort  ansigtsstribe kendetegner "]
[]
[null,null,null,null,null,null,null,null,null,null,null,null,null,null,null,null,null,null,null,null,null,null,null,null,null,null,null,null,null,null,null,null,null,null,null,null,null,null,null,null,null,null,null,null,null,4,null,1," måske lidt mørke ved spidsen. Følehornsbørsten er  kort behåret,"]
[null,null,null,null,null,null,null,null,null,null,null,null,null,null,null,null,null,null,null,null,null,null,null,null,null,null,null,null,null,null,null,null,null,null,null,null,null,null,null,null,null,null,null,null,null,null,null,2,"ligt mørkt vingebånd, hannens er  svagere. 11-13 mm. Udbredt,"]
[null,null,null," ",null,null,null,null,null,null,null,null,null,null,null,null,null,null,null,null,null,null,null,null,null,null,null,null,null,null,null,null,null,null,null,null,null,null,null,null,null,null,null,null,null,null,null,3,"midterstribe. Dog  kan slidte eks. have en tynd stribe og ligner da"]
[null,null,null," ",null,null,null,null,null,null,null,null,null,null,null,null,null,null,null,null,null,null,null,null,null,null,null,null,null,null,null,null,null,null,null,null,null,null,null,null,null,null,null,null,null,null,null,4,"basis er gul. 9-13 mm. Arten er meget sjælden og i stærk tilbagegang."]
[null,null,null," ",null,null,null,null,null,null,null,null,null,null,null,null,null,null,null,null,null,null,null,null,null,null,null,null,null,null,null,null,null,null,null,null,null,null,null,null,null,null,null,null,null,null,null,5,"er ofte mindre eller helt manglende. E. similis har langt vingemærke,"]
[null,null,null," ",null,null,null,null,null,null,null,null,null,null,null,null,null,null,null,null,null,null,null,null,null,null,null,null,null,null,null,null,null,null,null,null,null,null,null,null,null,null,null,null,null,null,null,6,"skarpt afgrænset. Scutellum gulligt. Skinneben elfenbensfarvede "]
[null,null,null," ",null,null,null,null,null,null,null,null,null,null,null,null,null,null,null,null,null,null,null,null,null,null,null,null,null,null,null,null,null,null,null,null,null,null,null,null,null,null,null,null,null,null,null,7,"sorte eller måske lyse ved basis (hun). Alle 3 arter i rupium-grup-"]
[null,null,null," ",null,null,null,null,null,null,null,null,null,null,null,null,null,null,null,null,null,null,null,null,null,null,null,null,null,null,null,null,null,null,null,null,null,null,null,null,null,null,null,null,null,null,null,8,"rede. Mellemskinnebenene gule ved basis. Kan ligne E. intricaria,"]
[null,null,null," ",null,null,null,null,null,null,null,null,null,null,null,null,null,null,null,null,null,null,null,null,null,null,null,null,null,null,null,null,null,null,null,null,null,null,null,null,null,null,null,null,null,null,null,9," tilspidsede bagkrop. Vingebåndet er ikke ret tydeligt. Det kan mang-",null,null,null,null,null,null,null,null,null,null,null,null,null,null,null,null,null,null,null,null,null,null,null,null,null,null,null,null,null,null,null,null,null,null,null,null,null,null,null,null,{"$f":"SUM(N69)","v":3},{"$f":"VLOOKUP('Ark1'!CL111,'Ark2'!B1:C12,2,FALSE)","v":"Ark2!A3"}]
[null,null,null," ",null,null,null,null,null,null,null,null,null,null,null,null,null,null,null,null,null,null,null,null,null,null,null,null,null,null,null,null,null,null,null,null,null,null,null,null,null,null,null,null,null,null,null,10,"har behåringen halvt nedliggende. E. rupium har bagkroppen blank.",null,null,null,null,null,null,null,null,null,null,null,null,null,null,null,null,null,null,null,null,null,null,null,null,null,null,null,null,null,null,null,null,null,null,null,null,null,null,null,null,{"$f":"SUM(N69)","v":3},{"$f":"VLOOKUP(CL112,'Ark2'!G1:H12,2,FALSE)","v":"Ark2!F3"}]
[null,null,null," ",null,null,null,null,null,null,null,null,null,null,null,null,null,null,null,null,null,null,null,null,null,null,null,null,null,null,null,null,null,null,null,null,null,null,null,null,null,null,null,null,null,null,null,11," gulbrune pletter er ret matte. E. pertinax har for- og mellemfødder",null,null,null,null,null,null,null,null,null,null,null,null,null,null,null,null,null,null,null,null,null,null,null,null,null,null,null,null,null,null,null,null,null,null,null,null,null,null,null,null,{"$f":"SUM(AI46)","v":5},{"$f":"VLOOKUP(CL113,'Ark2'!L1:M21,2,FALSE)","v":"Ark2!K5"}]
[null,null,null," ",null,null,null,null,null,null,null,null,null,null,null,null,null,null,null,null,null,null,null,null,null,null,null,null,null,null,null,null,null,null,null,null,null,null,null,null,null,null,null,null,null,null,null,12,"E. tenax .Hunnens bagkrop er bred. E. oestracea har også  lange sor-"]
[null,null,null," "]
[null,null,null," ",null,null,null,null,null,null,null,null,null,null,null,null,null,null,null,null,null,null,null,null,null,null,null,null,null,null,null,null,null,null,null,null,null,null,null,null,null,null,null,null,null,5,null,1,"og ansigtsstriben er stregformet. 8-12 mm. Ret alm. Mest i Jylland."]
[null,null,null," ",null,null,null,null,null,null,null,null,null,null,null,null,null,null,null,null,null,null,null,null,null,null,null,null,null,null,null,null,null,null,null,null,null,null,null,null,null,null,null,null,null,null,null,2,"men en art i tilbagegang."]
[null,null,null," ",null,null,null,null,null,null,null,null,null,null,null,null,null,null,null,null,null,null,null,null,null,null,null,null,null,null,null,null,null,null,null,null,null,null,null,null,null,null,null,null,null,null,null,3," E. abusiva. Følehornsbørsten fjergrenet behåret. Mellemste skin-"]
[null,null,null," ",null,null,null,null,null,null,null,null,null,null,null,null,null,null,null,null,null,null,null,null,null,null,null,null,null,null,null,null,null,null,null,null,null,null,null,null,null,null,null,null,null,null,null,4,"Vestjylland."]
[null,null,null," ",null,null,null,null,null,null,null,null,null,null,null,null,null,null,null,null,null,null,null,null,null,null,null,null,null,null,null,null,null,null,null,null,null,null,null,null,null,null,null,null,null,null,null,5,"E. arbustorum ingen sort ansigtsstribe. 10-14 mm. Almindelig."]
[null,null,null," ",null,null,null,null,null,null,null,null,null,null,null,null,null,null,null,null,null,null,null,null,null,null,null,null,null,null,null,null,null,null,null,null,null,null,null,null,null,null,null,null,null,null,null,6,"inderst. Mellemfødder gule ved basis. 10-15 mm. Almindelig."]
[null,null,null," ",null,null,null,null,null,null,null,null,null,null,null,null,null,null,null,null,null,null,null,null,null,null,null,null,null,null,null,null,null,null,null,null,null,null,null,null,null,null,null,null,null,null,null,7,"har bagkroppens pletter mindre og skinnende. 11-14 mm. Ret alm."]
[null,null,null,null,null,null,null,null,null,null,null,null,null,null,null,null,null,null,null,null,null,null,null,null,null,null,null,null,null,null,null,null,null,null,null,null,null,null,null,null,null,null,null,null,null,null,null,8,"men denne har brystskæl, der er gråsorte.  13-16 mm. Sjælden."]
[null,null,null,null,null,null,null,null,null,null,null,null,null,null,null,null,null,null,null,null,null,null,null,null,null,null,null,null,null,null,null,null,null,null," ",null,null,null,null,null,null,null,null,null,null,null,null,9,"le helt, især hos hunner. 11-16 mm. Meget almindelig."]
[null,null,null,null,null,null,null,null,null,null,null,null,null,null,null,null,null,null,null,null,null,null,null,null,null,null,null,null,null,null,null,null,null,null,null,null,null,null,null,null,null,null,null,null,null,null,null,10,"Bagkroppen har hos de to andre grå støvstriber. Alle tre er sjældne."]
[null,null,null,null,null,null,null,null,null,null,null,null,null,null,null,null,null,null,null,null,null,null,null,null,null,null,null,null,null,null,null,null,null,null,null,null,null,null,null,null,null,null,null,null,null,null,null,11," helt gule. 14-16 mm. Sjælden,  de senere år dog flere fund."]
[null,null,null,null,null,null,null,null,null,null,null,null,null,null,null,null,null,null,null,null,null,null,null,null,null,null,null,null,null,null,null,null,null,null,null,null,null,null,null,null,null,null,null,null,null,null,null,12,"te hår på bagskinnebene,  men  ligner en Humlebi.14-16 mm. Alm."]
[]
[null,null,null,null,null,null,null,null,null,null,null,null,null,null,null,null,null,null,null,null,null,null,null,null,null,null,null,null,null,null,null,null,null,null,null,null,null,null,null,null,null,null,null,null,null,6,null,1,"."]
[null,null,null,null,null,null,null,null,null,null,null,null,null,null,null,null,null,null,null,null,null,null,null,null,null,null,null,null,null,null,null,null,null,null,null,null,null,null,null,null,null,null,null,null,null,null,null,2,"."]
[null,null,null,null,null,null,null,null,null,null,null,null,null,null,null,null,null,null,null,null,null,null,null,null,null,null,null,null,null,null,null,null,null,null,null,null,null,null,null,null,null,null,null,null,null,null,null,3,"neben sorte i ca.yderste trediedel. 9-12 mm. Almindelig."]
[null,null,null,null,null,null,null,null,null,null,null,null,null,null,null,null,null,null,null,null,null,null,null,null,null,null,null,null,null,null,null,null,null,null,null,null,null,null,null,null,null,null,null,null,null,null,null,4,"."]
[null,null,null,null,null,null,null,null,null,null,null,null,null,null,null,null,null,null,null,null,null,null,null,null,null,null,null,null,null,null,null,null,null," ",null,null,null,null,null,null,null,null,null,null,null,null,null,5,"."]
[null,null,null,null,null,null,null,null,null,null,null,null,null,null,null,null,null,null,null,null,null,null,null,null,null,null,null,null,null,null,null,null,null,null,null,null,null,null,null,null,null,null,null,null,null,null,null,6,"."]
[null,null,null,null,null,null,null,null,null,null,null,null,null,null,null,null,null,null,null,null,null,null,null,null,null,null,null,null,null,null,null,null,null,null,null," ",null,null,null,null,null,null,null,null,null,null,null,7,"."]
[null,null,null,null,null,null,null,null,null,null,null,null,null,null,null,null,null,null,null,null,null,null,null,null,null,null,null,null,null,null,null,null,null,null,null,null,null,null,null,null,null,null,null,null,null,null,null,8,"."]
[null,null,null,null,null,null,null,null,null,null,null,null,null,null,null,null,null,null,null,null,null,null,null,null,null,null,null,null,null,null,null,null,null,null,null,null,null,null,null,null,null,null,null,null,null,null,null,9,"."]
[null,null,null,null,null,null,null,null,null,null,null,null,null,null,null,null,null,null,null,null,null,null,null,null,null,null,null,null,null,null,null,null,null,null,null,null,null,null,null,null,null,null,null,null,null,null,null,10,"."]
[null,null,null,null,null,null,null,null,null,null,null,null,null,null,null,null,null,null,null,null,null,null,null,null,null,null,null,null,null,null,null,null,null,null,null,null,null,null,null,null,null,null,null,null,null,null,null,11,"."]
[null,null,null,null,null,null,null,null,null,null,null,null,null,null,null,null,null,null,null,null,null,null,null,null,null,null,null,null,null,null,null,null,null,null,null,null,null,null,null,null,null,null,null,null,null,null,null,12,"."]
[]
[null,null,null,null,null,null,null,null,null,null,null,null,null,null,null,null,null,null,null,null,null,null,null,null,null,null,null,null,null,null,null,null,null,null,null,null,null,null,null,null,null,null,null,null,null,7,null,1,"."]
[null,null,null,null,null,null,null,null,null,null,null,null,null,null,null,null,null,null,null,null,null,null,null,null,null,null,null,null,null,null,null,null,null,null,null,null,null,null,null,null,null,null,null,null,null,null,null,2,"."]
[null,null,null,null,null,null,null,null,null,null,null,null,null,null,null,null,null,null,null,null,null,null,null,null,null,null,null,null,null,null,null,null,null,null,null,null,null,null,null,null,null,null,null,null,null,null,null,3,"."]
[null,null,null,null,null,null,null,null,null,null,null,null,null,null,null,null,null,null,null,null,null,null,null,null,null,null,null,null,null,null,null,null,null,null,null,null,null,null,null,null,null,null,null,null,null,null,null,4,"."]
[null,null,null,null,null,null,null,null,null,null,null,null,null,null,null,null,null,null,null,null,null,null,null,null,null,null,null,null,null,null,null,null,null,null,null,null,null,null,null,null,null,null,null,null,null,null,null,5,"."]
[null,null,null,null,null,null,null,null,null,null,null,null,null,null,null,null,null,null,null,null,null,null,null,null,null,null,null,null,null,null,null,null,null,null,null,null,null,null,null,null,null,null,null,null,null,null,null,6,"."]
[null,null,null,null,null,null,null,null,null,null,null,null,null,null,null,null,null,null,null,null,null,null,null,null,null,null,null,null,null,null,null,null,null,null,null,null,null,null,null,null,null,null,null,null,null,null,null,7,"."]
[null,null,null,null,null,null,null,null,null,null,null,null,null,null,null,null,null,null,null,null,null,null,null,null,null,null,null,null,null,null,null,null,null,null,null,null,null,null,null,null,null,null,null,null,null,null,null,8,"."]
[null,null,null,null,null,null,null,null,null,null,null,null,null,null,null,null,null,null,null,null,null,null,null,null,null,null,null,null,null,null,null,null,null,null,null,null,null,null,null,null,null,null,null,null,null,null,null,9,"."]
[null,null,null,null,null,null,null,null,null,null,null,null,null,null,null,null,null,null,null,null,null,null,null,null,null,null,null,null,null,null,null,null,null,null,null,null,null,null,null,null,null,null,null,null,null,null,null,10,"."]
[null,null,null,null,null,null,null,null,null,null,null,null,null,null,null,null,null,null,null,null,null,null,null,null,null,null,null,null,null,null,null,null,null,null,null,null,null,null,null,null,null,null,null,null,null,null,null,11,"."]
[null,null,null,null,null,null,null,null,null,null,null,null,null,null,null,null,null,null,null,null,null,null,null,null,null,null,null,null,null,null,null,null,null,null,null,null,null,null,null,null,null,null,null,null,null,null,null,12,"."]
[]
[]
[]
[]
[]
[]
[]
[]
[]
[]
[]
[]
[]
[]
[]
[null,null,null,null,null,null,null,null,null,null,null,null,null,null,null,null,null,null,null,null,null,null,null,null,null,null,null,null,null,null,null,null,null," "]

{"sheet":"Ark2","index":1,"n_rows":21,"n_cols":13,"rows_kept":21,"cut":false,"hidden":false,"merged":[]}
[null,1,"Ark2!A1","E. abusiva",null,null,1,"Ark2!F1",null,null,0,1,"Ark2!K1"]
[null,2,"Ark2!A2","E. anthophorina",null,null,2,"Ark2!F2",null,null,null,2,"Ark2!K2"]
[null,3,"Ark2!A3","E. arbustorum",null,null,3,"Ark2!F3",null,null,null,3,"Ark2!K3"]
[null,4,"Ark2!A4","E. cryptarum",null,null,4,"Ark2!F4",null,null,null,4,"Ark2!K4"]
[null,5,"Ark2!A5","E. interrupta",null,null,5,"Ark2!F5",null,null,null,5,"Ark2!K5"]
[null,6,"Ark2!A6","E. intricaria",null,null,6,"Ark2!F6",null,null,null,6,"Ark2!K6"]
[null,7,"Ark2!A7","E. lineata",null,null,7,"Ark2!F7",null,null,null,7,"Ark2!K7"]
[null,8,"Ark2!A8","E. oestracea",null,null,8,"Ark2!F8",null,null,null,8,"Ark2!K8"]
[null,9,"Ark2!A9","E. pertinax",null,null,9,"Ark2!F9",null,null,null,9,"Ark2!K9"]
[null,10,"Ark2!A10","E. rupium gr.",null,null,10,"Ark2!F10",null,null,null,10,"Ark2!K10"]
[null,11,"Ark2!A11","E. similis",null,null,11,"Ark2!F11",null,null,null,11,"Ark2!K11"]
[null,12,"Ark2!A12","E. tenax",null,null,12,"Ark2!F12",null,null,null,12,"Ark2!K12"]
[null,null,null,null,null,null,null,null,null,null,null,13,"Ark2!K13"]
[null,null,null,null,null,null,null,null,null,null,null,14,"Ark2!K14"]
[null,null,null,null,null,null,null,null,null,null,null,15,"Ark2!K15"]
[null,null,null,null,null,null,null,null,null,null,null,16,"Ark2!K16"]
[null,null,null,null,null,null,null,null,null,null,null,17,"Ark2!K17"]
[null,null,null,null,null,null,null,null,null,null,null,18,"Ark2!K18"]
[null,null,null,null,null,null,null,null,null,null,null,19,"Ark2!K19"]
[null,null,null,null,null,null,null,null,null,null,null,20,"Ark2!K20"]
[null,null,null,null,null,null,null,null,null,null,null,21,"Ark2!K21"]

{"sheet":"Ark3","index":2,"n_rows":0,"n_cols":0,"rows_kept":0,"cut":false,"hidden":false,"merged":[]}